[Event "FIDE Womens Grand Swiss 2021"]
[Site "Riga"]
[Date "2021.10.29"]
[Round "3.15"]
[White "Bivol, Alina"]
[Black "Osmak, Iulija"]
[Result "1/2-1/2"]
[ECO "C07"]
[WhiteElo "2392"]
[BlackElo "2423"]
[Annotator "NA"]
[PlyCount "121"]
[EventDate "2021.10.27"]
[EventType "swiss"]
[EventCountry "LAT"]
[Tiebreak "Cut1 Buchholz+Sonneborn-Berger (Swiss)"]
[SourceTitle "playchess.com"]
[Source "ChessBase"]
[SourceQuality "1"]
[TimeControl "40/6000+30:20/3000+30:900+30"]

1. e4 {[%emt 0:10:04]} e6 {[%emt 0:13:08]} 2. d4 {[%emt 0:00:17]} d5 {[%emt 0:
00:18]} 3. Nd2 {[%emt 0:00:08]} c5 {[%emt 0:00:08]} 4. Ngf3 {[%emt 0:00:07]}
cxd4 {[%emt 0:00:09]} 5. Nxd4 {[%emt 0:00:05]} Nc6 {[%emt 0:00:04]} 6. Bb5 {
[%emt 0:00:07]} Bd7 {[%emt 0:00:04]} 7. Nxc6 {[%emt 0:00:09]} bxc6 {[%emt 0:00:
04]} 8. Bd3 {[%emt 0:00:12]} Bd6 {[%emt 0:00:18]} 9. Qe2 {[%emt 0:00:57]} Qc7 {
[%emt 0:00:17]} 10. c4 {[%emt 0:05:18]} Nf6 {[%emt 0:07:31]} 11. h3 {[%emt 0:
11:10]} O-O {[%emt 0:03:23]} 12. O-O {[%emt 0:00:25]} Rab8 {[%emt 0:08:22]} 13.
exd5 {[%emt 0:14:34]} cxd5 {[%emt 0:00:45]} 14. cxd5 {[%emt 0:05:06]} Nxd5 {
[%emt 0:12:05]} 15. Nc4 {[%emt 0:06:10]} Bh2+ {[%emt 0:00:52]} 16. Kh1 {
[%emt 0:00:01]} Nf4 {[%emt 0:02:41]} 17. Bxf4 {[%emt 0:01:04]} Bxf4 $15 {
[%emt 0:00:06]} 18. b3 {[%emt 0:00:10]} e5 {[%emt 0:07:03]} 19. Ne3 {[%emt 0:
09:40]} Qb7 {[%emt 0:02:59]} 20. Rad1 {[%emt 0:14:02]} Bxh3 {[%emt 0:18:36]}
21. Qh5 {[%emt 0:03:33]} e4 {[%emt 0:00:55]} 22. Qxh3 {[%emt 0:05:59]} exd3 {
[%emt 0:00:41]} 23. Rxd3 {[%emt 0:03:16]} Rbd8 {[%emt 0:11:37]} 24. Nf5 {
[%emt 0:04:40]} Qe4 {[%emt 0:04:41]} 25. Qg4 {[%emt 0:06:38]} g6 {[%emt 0:01:
15]} 26. Rf3 {[%emt 0:00:39]} Qe2 {[%emt 0:05:08]} 27. Rg1 {[%emt 0:01:28]} Bd2
{[%emt 0:00:26]} 28. Qh4 {[%emt 0:02:01]} f6 {[%emt 0:03:49]} 29. Rh3 {[%emt 0:
02:28]} Rd7 {[%emt 0:01:51]} 30. Nd4 {[%emt 0:01:13]} Qe5 {[%emt 0:01:06]} 31.
Nf3 {[%emt 0:00:13]} Qf4 {[%emt 0:00:11]} 32. Rd1 {[%emt 0:01:07]} Rfd8 {
[%emt 0:02:40]} 33. Rxd2 {[%emt 0:00:28]} Qxh4 {[%emt 0:00:03]} 34. Rxh4 {
[%emt 0:00:05]} Rxd2 {[%emt 0:00:03]} 35. Nxd2 {[%emt 0:00:06]} Rxd2 {[%emt 0:
00:09]} 36. Ra4 {[%emt 0:00:26]} Rd7 {[%emt 0:00:52]} 37. Ra6 {[%emt 0:00:15]}
Kg7 {[%emt 0:00:33]} 38. b4 {[%emt 0:00:41]} f5 {[%emt 0:03:39]} 39. Kh2 {
[%emt 0:01:11]} f4 {[%emt 0:00:55]} 40. a4 {[%emt 0:01:18]} h5 {[%emt 0:00:22]}
41. g3 {[%emt 0:50:48]} fxg3+ {[%emt 0:28:25]} 42. fxg3 {[%emt 0:00:00]} Kh6 {
[%emt 0:04:11]} 43. Ra5 {[%emt 0:00:00]} Rb7 {[%emt 0:04:00]} 44. b5 {[%emt 0:
00:00]} Re7 {[%emt 0:00:19]} 45. Kg2 {[%emt 0:00:00]} Rf7 {[%emt 0:00:14]} 46.
Ra6 {[%emt 0:00:00]} Kg5 {[%emt 0:00:16]} 47. Rc6 {[%emt 0:00:00]} Rd7 {
[%emt 0:05:35]} 48. Rc5+ {[%emt 0:00:00]} Kg4 {[%emt 0:00:29]} 49. Rc4+ {
[%emt 0:00:00]} Kf5 {[%emt 0:00:11]} 50. Rc6 {[%emt 0:00:00]} g5 {[%emt 0:01:
16]} 51. Kf3 {[%emt 0:00:00]} Rd3+ {[%emt 0:01:05]} 52. Kf2 {[%emt 0:00:00]}
Kg4 {[%emt 0:03:33]} 53. Rc7 {[%emt 0:01:49]} Rf3+ {[%emt 0:00:11]} 54. Ke2 {
[%emt 0:00:15]} Rb3 {[%emt 0:01:55]} 55. Rxa7 {[%emt 0:01:10]} Kxg3 {[%emt 0:
00:07]} 56. Kd2 {[%emt 0:03:03]} h4 {[%emt 0:00:26]} 57. Kc2 {[%emt 0:00:01]}
Rb4 {[%emt 0:00:44]} 58. Kc3 {[%emt 0:00:01]} Rb1 {[%emt 0:00:04]} 59. Kc2 {
[%emt 0:00:33]} Rb4 {[%emt 0:02:53]} 60. Kc3 {[%emt 0:00:01]} Rb1 {[%emt 0:04:
03]} 61. Kc2 {[%emt 0:15:54]} 1/2-1/2

[Event "FIDE Womens Grand Swiss 2021"]
[Site "Riga"]
[Date "2021.10.29"]
[Round "3.16"]
[White "Atalik, Ekaterina"]
[Black "Arakhamia-Grant, Ketevan"]
[Result "0-1"]
[ECO "A45"]
[WhiteElo "2420"]
[BlackElo "2376"]
[Annotator "NA"]
[PlyCount "72"]
[EventDate "2021.10.27"]
[EventType "swiss"]
[EventCountry "LAT"]
[Tiebreak "Cut1 Buchholz+Sonneborn-Berger (Swiss)"]
[SourceTitle "playchess.com"]
[Source "ChessBase"]
[SourceQuality "1"]
[TimeControl "40/6000+30:20/3000+30:900+30"]

1. d4 {[%emt 0:10:04]} Nf6 {[%emt 0:10:07]} 2. Bf4 {[%emt 0:00:15]} c5 {
[%emt 0:05:11]} 3. d5 {[%emt 0:04:29]} b5 {[%emt 0:02:42]} 4. c4 {[%emt 0:03:
13]} g6 {[%emt 0:09:39]} 5. cxb5 {[%emt 0:03:39]} a6 {[%emt 0:13:13]} 6. bxa6 {
[%emt 0:01:07]} d6 {[%emt 0:03:03]} 7. Nc3 {[%emt 0:04:41]} Qb6 {[%emt 0:14:42]
} 8. Bc1 {[%emt 0:19:16]} Bxa6 {[%emt 0:06:56]} 9. g3 {[%emt 0:01:52]} Bg7 {
[%emt 0:00:59]} 10. Bg2 {[%emt 0:00:30]} O-O {[%emt 0:03:41]} 11. Nh3 {[%emt 0:
01:36]} Nbd7 {[%emt 0:01:50]} 12. O-O {[%emt 0:02:22]} Bc4 {[%emt 0:07:39]} 13.
Qc2 {[%emt 0:14:40]} Rfb8 {[%emt 0:00:10]} 14. Nf4 {[%emt 0:05:25]} Ne5 {
[%emt 0:08:08]} 15. h4 {[%emt 0:04:18]} h6 {[%emt 0:01:25]} 16. Nd3 {[%emt 0:
04:48]} Nxd3 {[%emt 0:06:03]} 17. exd3 {[%emt 0:00:08]} Ba6 {[%emt 0:00:05]}
18. b3 {[%emt 0:03:01]} Ng4 {[%emt 0:03:10]} 19. Bb2 {[%emt 0:01:16]} Bd4 {
[%emt 0:04:37]} 20. Rad1 {[%emt 0:09:05]} Ne5 {[%emt 0:02:58]} 21. Bc1 {
[%emt 0:02:19]} Bc8 {[%emt 0:03:12]} 22. Bxh6 {[%emt 0:02:08]} Bg4 {[%emt 0:00:
53]} 23. Ne2 {[%emt 0:02:54]} Nf3+ {[%emt 0:00:33]} 24. Kh1 {[%emt 0:02:01]}
Bf6 {[%emt 0:00:13]} 25. Be3 {[%emt 0:02:27]} Qb4 {[%emt 0:00:08]} 26. Rb1 {
[%emt 0:02:07]} Kg7 {[%emt 0:00:06]} 27. Ng1 {[%emt 0:01:04]} Nd4 {[%emt 0:01:
37]} 28. Bxd4 {[%emt 0:00:27]} Bxd4 {[%emt 0:00:20]} 29. Bf3 {[%emt 0:02:30]}
Bf6 {[%emt 0:00:31]} 30. Bxg4 {[%emt 0:00:42]} Qxg4 {[%emt 0:00:05]} 31. a4 {
[%emt 0:00:54]} Rb4 {[%emt 0:00:20]} 32. Rfe1 {[%emt 0:00:33]} Bxh4 {[%emt 0:
01:17]} 33. Re4 {[%emt 0:00:27]} Rxe4 {[%emt 0:00:31]} 34. dxe4 {[%emt 0:00:11]
} Bxg3 {[%emt 0:00:16]} 35. fxg3 {[%emt 0:00:55]} Qxg3 {[%emt 0:00:22]} 36.
Qb2+ {[%emt 0:00:27]} f6 {[%emt 0:00:10]} 0-1

[Event "FIDE Womens Grand Swiss 2021"]
[Site "Riga"]
[Date "2021.10.29"]
[Round "3.17"]
[White "Padmini, Rout"]
[Black "Vaishali R"]
[Result "1-0"]
[ECO "A06"]
[WhiteElo "2380"]
[BlackElo "2419"]
[Annotator "NA"]
[PlyCount "71"]
[EventDate "2021.10.27"]
[EventType "swiss"]
[EventCountry "LAT"]
[Tiebreak "Cut1 Buchholz+Sonneborn-Berger (Swiss)"]
[SourceTitle "playchess.com"]
[Source "ChessBase"]
[SourceQuality "1"]
[TimeControl "40/6000+30:20/3000+30:900+30"]

1. Nf3 {[%emt 0:10:10]} d5 {[%emt 0:10:34]} 2. g3 {[%emt 0:00:22]} Nc6 {
[%emt 0:00:13]} 3. d4 {[%emt 0:00:30]} Bf5 {[%emt 0:00:13]} 4. Bg2 {[%emt 0:00:
44]} Nb4 {[%emt 0:00:29]} 5. Na3 {[%emt 0:00:25]} e6 {[%emt 0:00:06]} 6. O-O {
[%emt 0:03:06]} h6 {[%emt 0:02:26]} 7. c3 {[%emt 0:05:06]} Nc6 {[%emt 0:00:21]}
8. Nb1 {[%emt 0:10:28]} Nf6 {[%emt 0:04:53]} 9. c4 {[%emt 0:02:22]} Be7 {
[%emt 0:17:06]} 10. Nc3 {[%emt 0:01:45]} O-O {[%emt 0:00:39]} 11. Ne5 {[%emt 0:
02:32]} Nxe5 {[%emt 0:12:24]} 12. dxe5 {[%emt 0:00:16]} Nd7 {[%emt 0:00:46]}
13. cxd5 {[%emt 0:02:50]} Nxe5 {[%emt 0:00:07]} 14. dxe6 {[%emt 0:05:59]} Bxe6
{[%emt 0:00:13]} 15. Bxb7 {[%emt 0:00:38]} Rb8 {[%emt 0:00:30]} 16. Bg2 {
[%emt 0:01:41]} Nc4 {[%emt 0:03:27]} 17. Qc2 {[%emt 0:01:13]} Bf6 {[%emt 0:00:
44]} 18. Rb1 {[%emt 0:07:17]} Qd4 {[%emt 0:15:16]} 19. Ne4 {[%emt 0:04:08]} Be7
{[%emt 0:01:20]} 20. b3 {[%emt 0:05:20]} Qb6 {[%emt 0:06:53]} 21. Nc3 {[%emt 0:
03:44]} Na3 {[%emt 0:01:33]} 22. Bxa3 {[%emt 0:00:07]} Bxa3 {[%emt 0:00:03]}
23. Nd5 {[%emt 0:01:45]} Bxd5 {[%emt 0:01:52]} 24. Bxd5 {[%emt 0:00:02]} Rbd8 {
[%emt 0:02:09]} 25. Rbd1 {[%emt 0:01:05]} Rd6 {[%emt 0:01:13]} 26. Bc4 {
[%emt 0:00:19]} Rf6 {[%emt 0:07:35]} 27. Qe4 {[%emt 0:03:29]} Bd6 {[%emt 0:02:
59]} 28. a4 {[%emt 0:01:06]} Qb8 {[%emt 0:02:26]} 29. Rd5 {[%emt 0:02:19]} Re8
{[%emt 0:01:02]} 30. Qd3 {[%emt 0:00:05]} Qc8 {[%emt 0:07:33]} 31. Kg2 {
[%emt 0:01:58]} Qb8 {[%emt 0:04:11]} 32. Rd1 {[%emt 0:02:19]} Qb6 {[%emt 0:02:
33]} 33. Rf5 {[%emt 0:03:44]} Be7 {[%emt 0:01:26]} 34. Qe4 {[%emt 0:04:48]} g6
{[%emt 0:00:49]} 35. Rxf6 {[%emt 0:00:46]} Qxf6 {[%emt 0:00:03]} 36. Rd3 {
[%emt 0:03:25]} 1-0

[Event "FIDE Womens Grand Swiss 2021"]
[Site "Riga"]
[Date "2021.10.29"]
[Round "3.18"]
[White "Maltsevskaya, Aleksandra"]
[Black "Lujan, Carolina"]
[Result "0-1"]
[ECO "B30"]
[WhiteElo "2411"]
[BlackElo "2340"]
[Annotator "NA"]
[PlyCount "74"]
[EventDate "2021.10.27"]
[EventType "swiss"]
[EventCountry "LAT"]
[Tiebreak "Cut1 Buchholz+Sonneborn-Berger (Swiss)"]
[SourceTitle "playchess.com"]
[Source "ChessBase"]
[SourceQuality "1"]
[TimeControl "40/6000+30:20/3000+30:900+30"]

1. e4 {[%emt 0:10:03]} c5 {[%emt 0:10:13]} 2. Nf3 {[%emt 0:00:09]} Nc6 {
[%emt 0:00:15]} 3. Bb5 {[%emt 0:00:42]} e6 {[%emt 0:01:43]} 4. O-O {[%emt 0:00:
58]} Nge7 {[%emt 0:00:04]} 5. Re1 {[%emt 0:01:53]} a6 {[%emt 0:11:18]} 6. Bf1 {
[%emt 0:00:45]} d5 {[%emt 0:02:43]} 7. exd5 {[%emt 0:01:52]} Nxd5 {[%emt 0:01:
29]} 8. d4 {[%emt 0:08:59]} Nf6 {[%emt 0:06:13]} 9. Be3 {[%emt 0:05:10]} Qc7 {
[%emt 0:13:37]} 10. Nc3 {[%emt 0:08:20]} cxd4 {[%emt 0:06:34]} 11. Nxd4 {
[%emt 0:00:21]} Be7 {[%emt 0:01:21]} 12. Qf3 {[%emt 0:03:31]} O-O {[%emt 0:06:
52]} 13. Rad1 {[%emt 0:05:23]} Bd7 {[%emt 0:05:19]} 14. Nxc6 {[%emt 0:18:12]}
Bxc6 {[%emt 0:06:32]} 15. Qh3 {[%emt 0:00:06]} b5 {[%emt 0:01:06]} 16. Bd3 {
[%emt 0:05:08]} b4 {[%emt 0:04:32]} 17. Bg5 {[%emt 0:17:11]} h6 {[%emt 0:08:37]
} 18. Bxh6 {[%emt 0:00:08]} bxc3 {[%emt 0:00:27]} 19. Re3 {[%emt 0:00:07]} Rfd8
{[%emt 0:04:53]} 20. Rg3 {[%emt 0:14:38]} g6 {[%emt 0:04:30]} 21. Re1 {[%emt 0:
05:46]} Be4 {[%emt 0:05:12]} 22. bxc3 {[%emt 0:01:27]} Rxd3 {[%emt 0:04:34]}
23. cxd3 {[%emt 0:00:33]} Bf5 {[%emt 0:00:05]} 24. Qh4 {[%emt 0:00:13]} Ne4 {
[%emt 0:00:36]} 25. Bg5 {[%emt 0:00:52]} Nxg5 {[%emt 0:01:20]} 26. Qd4 {
[%emt 0:00:30]} Rd8 {[%emt 0:00:45]} 27. Qa4 {[%emt 0:00:24]} Qxc3 {[%emt 0:01:
15]} 28. Rd1 {[%emt 0:00:05]} Qd4 {[%emt 0:01:23]} 29. Qc2 {[%emt 0:01:02]} Ne4
{[%emt 0:00:38]} 30. Re3 {[%emt 0:00:13]} Nc3 {[%emt 0:00:30]} 31. Rde1 {
[%emt 0:00:47]} Bf6 {[%emt 0:00:21]} 32. h3 {[%emt 0:00:29]} Nd5 {[%emt 0:00:
32]} 33. Rf3 {[%emt 0:00:25]} Nb4 {[%emt 0:00:31]} 34. Qc7 {[%emt 0:00:25]}
Nxd3 {[%emt 0:00:43]} 35. Rd1 {[%emt 0:00:10]} Qc5 {[%emt 0:00:41]} 36. Qb7 {
[%emt 0:00:56]} Kg7 {[%emt 0:00:27]} 37. g4 {[%emt 0:00:25]} Ne5 {[%emt 0:00:
18]} 0-1

[Event "FIDE Womens Grand Swiss 2021"]
[Site "Riga"]
[Date "2021.10.29"]
[Round "3.20"]
[White "Vantika Agrawal"]
[Black "Divya Deshmukh"]
[Result "1-0"]
[ECO "D38"]
[WhiteElo "2322"]
[BlackElo "2305"]
[Annotator "NA"]
[PlyCount "69"]
[EventDate "2021.10.27"]
[EventType "swiss"]
[EventCountry "LAT"]
[Tiebreak "Cut1 Buchholz+Sonneborn-Berger (Swiss)"]
[SourceTitle "playchess.com"]
[Source "ChessBase"]
[SourceQuality "1"]
[TimeControl "40/6000+30:20/3000+30:900+30"]

1. d4 {[%emt 0:10:38]} Nf6 {[%emt 0:10:09]} 2. c4 {[%emt 0:00:07]} e6 {[%emt 0:
00:06]} 3. Nf3 {[%emt 0:00:11]} d5 {[%emt 0:00:04]} 4. Nc3 {[%emt 0:00:16]} Bb4
{[%emt 0:00:04]} 5. Qa4+ {[%emt 0:00:32]} Nc6 {[%emt 0:00:04]} 6. e3 {[%emt 0:
00:20]} O-O {[%emt 0:00:59]} 7. Qc2 {[%emt 0:00:31]} Re8 {[%emt 0:01:25]} 8.
Bd2 {[%emt 0:00:45]} a6 {[%emt 0:18:41]} 9. a3 {[%emt 0:01:49]} Bf8 {[%emt 0:
02:06]} 10. Be2 {[%emt 0:06:37]} h6 {[%emt 0:06:13]} 11. O-O {[%emt 0:09:44]}
dxc4 {[%emt 0:01:27]} 12. Bxc4 {[%emt 0:00:20]} b5 {[%emt 0:00:32]} 13. Ba2 {
[%emt 0:19:08]} Bb7 {[%emt 0:03:21]} 14. Rfd1 {[%emt 0:03:12]} b4 {[%emt 0:28:
45]} 15. Na4 {[%emt 0:05:36]} bxa3 {[%emt 0:02:03]} 16. bxa3 {[%emt 0:00:39]}
Na7 {[%emt 0:00:14]} 17. Nc5 {[%emt 0:18:25]} Bxc5 {[%emt 0:06:00]} 18. Qxc5 {
[%emt 0:09:20]} Bxf3 {[%emt 0:08:57]} 19. gxf3 {[%emt 0:00:12]} Nd7 {[%emt 0:
00:03]} 20. Qh5 {[%emt 0:01:02]} Nb5 {[%emt 0:09:23]} 21. Kh1 {[%emt 0:04:48]}
Qf6 {[%emt 0:08:11]} 22. Rg1 {[%emt 0:00:44]} c5 {[%emt 0:01:34]} 23. a4 {
[%emt 0:00:27]} Nc7 {[%emt 0:01:04]} 24. dxc5 {[%emt 0:00:45]} Nd5 {[%emt 0:00:
30]} 25. Rac1 {[%emt 0:01:24]} Ne5 {[%emt 0:00:30]} 26. Bxd5 {[%emt 0:07:03]}
exd5 {[%emt 0:00:01]} 27. Bc3 {[%emt 0:03:20]} d4 {[%emt 0:00:03]} 28. exd4 {
[%emt 0:02:28]} Nd3 {[%emt 0:01:29]} 29. d5 {[%emt 0:00:30]} Nxf2+ {[%emt 0:00:
15]} 30. Kg2 {[%emt 0:00:03]} Qe7 {[%emt 0:00:44]} 31. Kxf2 {[%emt 0:00:00]}
Qe2+ {[%emt 0:00:31]} 32. Kg3 {[%emt 0:00:00]} Re3 {[%emt 0:00:26]} 33. Rge1 {
[%emt 0:00:44]} Qd3 {[%emt 0:00:01]} 34. Rxe3 {[%emt 0:00:07]} Qxe3 {[%emt 0:
00:02]} 35. Qe5 {[%emt 0:00:11]} 1-0

[Event "FIDE Womens Grand Swiss 2021"]
[Site "Riga"]
[Date "2021.10.29"]
[Round "3.21"]
[White "Kamalidenova, Meruert"]
[Black "Cramling, Pia"]
[Result "1/2-1/2"]
[ECO "B43"]
[WhiteElo "2339"]
[BlackElo "2447"]
[Annotator "NA"]
[PlyCount "139"]
[EventDate "2021.10.27"]
[EventType "swiss"]
[EventCountry "LAT"]
[Tiebreak "Cut1 Buchholz+Sonneborn-Berger (Swiss)"]
[SourceTitle "playchess.com"]
[Source "ChessBase"]
[SourceQuality "1"]
[TimeControl "40/6000+30:20/3000+30:900+30"]

1. e4 {[%emt 0:10:05]} c5 {[%emt 0:10:05]} 2. Nf3 {[%emt 0:00:06]} e6 {[%emt 0:
00:04]} 3. d4 {[%emt 0:00:05]} cxd4 {[%emt 0:00:04]} 4. Nxd4 {[%emt 0:00:07]}
a6 {[%emt 0:00:04]} 5. Nc3 {[%emt 0:00:09]} Qc7 {[%emt 0:00:33]} 6. Bd3 {
[%emt 0:00:55]} Nf6 {[%emt 0:00:59]} 7. f4 {[%emt 0:03:09]} d6 {[%emt 0:04:44]}
8. Qe2 {[%emt 0:05:09]} Nbd7 {[%emt 0:01:42]} 9. g4 {[%emt 0:02:07]} Nc5 {
[%emt 0:01:28]} 10. g5 {[%emt 0:01:37]} Nfd7 {[%emt 0:00:27]} 11. Be3 {[%emt 0:
00:53]} b5 {[%emt 0:03:59]} 12. Rg1 {[%emt 0:05:00]} Nb6 {[%emt 0:12:47]} 13.
h4 {[%emt 0:03:15]} b4 {[%emt 0:11:56]} 14. Nd1 {[%emt 0:02:17]} e5 {[%emt 0:
01:30]} 15. Nb3 {[%emt 0:03:49]} Be7 {[%emt 0:03:38]} 16. Qf2 {[%emt 0:06:21]}
exf4 {[%emt 0:07:46]} 17. Qxf4 {[%emt 0:04:43]} Ne6 {[%emt 0:00:57]} 18. Qf1 {
[%emt 0:01:43]} Nd7 $15 {[%emt 0:05:18]} 19. Nf2 {[%emt 0:05:43]} Ne5 {[%emt 0:
00:37]} 20. O-O-O {[%emt 0:00:17]} O-O {[%emt 0:01:07]} 21. Ng4 {[%emt 0:03:42]
} Nxg4 {[%emt 0:04:03]} 22. Rxg4 {[%emt 0:00:08]} a5 {[%emt 0:01:33]} 23. Kb1 {
[%emt 0:09:01]} a4 {[%emt 0:07:58]} 24. Nd2 {[%emt 0:01:58]} Nc5 {[%emt 0:02:
33]} 25. Rf4 {[%emt 0:05:05]} Be6 {[%emt 0:00:21]} 26. Bc4 {[%emt 0:08:03]}
Rac8 {[%emt 0:00:21]} 27. Bd5 {[%emt 0:07:12]} a3 {[%emt 0:05:13]} 28. Bxc5 {
[%emt 0:02:37]} Qxc5 {[%emt 0:00:51]} 29. Qd3 {[%emt 0:01:21]} axb2 {[%emt 0:
00:33]} 30. Qb3 {[%emt 0:02:19]} Bxd5 {[%emt 0:07:18]} 31. exd5 {[%emt 0:00:33]
} Rfe8 {[%emt 0:04:05]} 32. Rxb4 {[%emt 0:05:05]} Qf2 {[%emt 0:02:26]} 33. Qf3
{[%emt 0:01:33]} Qxf3 {[%emt 0:00:22]} 34. Nxf3 {[%emt 0:00:06]} Bf8 {[%emt 0:
00:19]} 35. Nd2 {[%emt 0:03:02]} Re2 {[%emt 0:00:55]} 36. Re4 {[%emt 0:00:26]}
Rxe4 {[%emt 0:02:06]} 37. Nxe4 {[%emt 0:00:01]} Rc4 {[%emt 0:00:09]} 38. Re1 {
[%emt 0:01:04]} Rd4 {[%emt 0:00:12]} 39. Kxb2 {[%emt 0:01:46]} Rxd5 {[%emt 0:
00:22]} 40. Nc3 {[%emt 0:00:33]} Rc5 {[%emt 0:08:00]} 41. Kb3 {[%emt 0:56:50]}
h6 {[%emt 0:26:58]} 42. gxh6 {[%emt 0:00:00]} gxh6 {[%emt 0:00:12]} 43. a4 {
[%emt 0:00:00]} f5 {[%emt 0:02:44]} 44. Nb5 {[%emt 0:00:00]} Kf7 {[%emt 0:01:
02]} 45. Rd1 {[%emt 0:00:00]} d5 {[%emt 0:02:11]} 46. Rf1 {[%emt 0:00:00]} Be7
{[%emt 0:07:41]} 47. Rxf5+ {[%emt 0:00:00]} Kg6 {[%emt 0:00:23]} 48. Rf4 {
[%emt 0:00:00]} Kh5 {[%emt 0:01:49]} 49. Nc3 {[%emt 0:00:00]} Bxh4 {[%emt 0:02:
17]} 50. Rd4 {[%emt 0:00:00]} Bf2 {[%emt 0:05:46]} 51. Rd2 {[%emt 0:00:00]} Be1
{[%emt 0:01:01]} 52. Rxd5+ {[%emt 0:00:00]} Rxd5 {[%emt 0:00:05]} 53. Nxd5 {
[%emt 0:00:00]} Kg5 {[%emt 0:00:38]} 54. Nc3 {[%emt 0:02:43]} h5 {[%emt 0:02:
28]} 55. a5 {[%emt 0:00:10]} Kf5 {[%emt 0:00:12]} 56. a6 {[%emt 0:00:48]} Bf2 {
[%emt 0:00:04]} 57. Ne2 {[%emt 0:01:52]} h4 {[%emt 0:01:34]} 58. Kc4 {[%emt 0:
01:04]} h3 {[%emt 0:00:59]} 59. Ng3+ {[%emt 0:01:51]} Kg4 {[%emt 0:01:09]} 60.
Nh1 {[%emt 0:00:35]} Ba7 {[%emt 0:00:31]} 61. Kb5 {[%emt 0:15:57]} Kf3 {
[%emt 0:15:17]} 62. c4 {[%emt 0:00:07]} Kg2 {[%emt 0:00:11]} 63. c5 {[%emt 0:
00:03]} Bxc5 {[%emt 0:01:38]} 64. Kxc5 {[%emt 0:00:11]} Kxh1 {[%emt 0:00:04]}
65. a7 {[%emt 0:00:04]} h2 {[%emt 0:00:06]} 66. a8=Q+ {[%emt 0:00:06]} Kg1 {
[%emt 0:00:04]} 67. Qg8+ {[%emt 0:00:14]} Kf2 {[%emt 0:00:17]} 68. Qf7+ {
[%emt 0:00:21]} Kg1 {[%emt 0:00:11]} 69. Qg6+ {[%emt 0:00:03]} Kh1 {[%emt 0:00:
33]} 70. Kd4 {[%emt 0:00:37]} 1/2-1/2

[Event "FIDE Womens Grand Swiss 2021"]
[Site "Riga"]
[Date "2021.10.29"]
[Round "3.22"]
[White "Milliet, Sophie"]
[Black "Eizaguerri Floris, Maria"]
[Result "1/2-1/2"]
[ECO "D37"]
[WhiteElo "2410"]
[BlackElo "2328"]
[Annotator "NA"]
[PlyCount "116"]
[EventDate "2021.10.27"]
[EventType "swiss"]
[EventCountry "LAT"]
[Tiebreak "Cut1 Buchholz+Sonneborn-Berger (Swiss)"]
[SourceTitle "playchess.com"]
[Source "ChessBase"]
[SourceQuality "1"]
[TimeControl "40/6000+30:20/3000+30:900+30"]

1. d4 {[%emt 0:10:04]} d5 {[%emt 0:10:13]} 2. c4 {[%emt 0:00:04]} e6 {[%emt 0:
00:29]} 3. Nf3 {[%emt 0:00:06]} Nf6 {[%emt 0:00:19]} 4. Nc3 {[%emt 0:00:07]}
Be7 {[%emt 0:06:53]} 5. Bf4 {[%emt 0:05:11]} c6 {[%emt 0:01:57]} 6. e3 {
[%emt 0:01:30]} O-O {[%emt 0:00:32]} 7. Qc2 {[%emt 0:04:40]} Nbd7 {[%emt 0:03:
47]} 8. h3 {[%emt 0:06:59]} b6 {[%emt 0:05:49]} 9. cxd5 {[%emt 0:02:16]} exd5 {
[%emt 0:01:41]} 10. Bd3 {[%emt 0:00:41]} Bb7 {[%emt 0:01:34]} 11. O-O {[%emt 0:
02:39]} Rc8 {[%emt 0:01:43]} 12. Ne5 {[%emt 0:09:47]} h6 {[%emt 0:19:42]} 13.
Nxd7 {[%emt 0:08:32]} Nxd7 {[%emt 0:00:07]} 14. Bf5 {[%emt 0:00:20]} Ra8 {
[%emt 0:04:11]} 15. Rfd1 {[%emt 0:06:07]} Nf6 {[%emt 0:02:16]} 16. Rac1 {
[%emt 0:06:39]} Re8 {[%emt 0:06:42]} 17. e4 {[%emt 0:16:19]} Nh5 {[%emt 0:25:
44]} 18. Be3 {[%emt 0:07:05]} Bg5 {[%emt 0:01:34]} 19. e5 {[%emt 0:01:36]} Bxe3
{[%emt 0:02:25]} 20. fxe3 {[%emt 0:00:01]} Qg5 {[%emt 0:01:03]} 21. Qf2 {
[%emt 0:00:12]} Bc8 {[%emt 0:08:27]} 22. Bxc8 {[%emt 0:00:20]} Raxc8 {[%emt 0:
00:03]} 23. Kh2 {[%emt 0:00:22]} g6 {[%emt 0:00:19]} 24. Rf1 {[%emt 0:00:56]}
Qe7 {[%emt 0:02:58]} 25. e4 {[%emt 0:01:16]} dxe4 {[%emt 0:01:01]} 26. Nxe4 {
[%emt 0:00:22]} Red8 {[%emt 0:00:21]} 27. g4 {[%emt 0:13:17]} Ng7 {[%emt 0:00:
05]} 28. Nf6+ {[%emt 0:00:05]} Kf8 {[%emt 0:00:52]} 29. Nh7+ {[%emt 0:00:09]}
Kg8 {[%emt 0:00:15]} 30. Nf6+ {[%emt 0:00:03]} Kf8 {[%emt 0:00:04]} 31. Qf4 {
[%emt 0:01:42]} g5 {[%emt 0:00:32]} 32. Qe4 {[%emt 0:00:30]} Ne8 {[%emt 0:02:
06]} 33. Qh7 {[%emt 0:03:31]} Nxf6 {[%emt 0:00:03]} 34. Rxf6 {[%emt 0:02:25]}
Ke8 {[%emt 0:00:05]} 35. Qg8+ {[%emt 0:01:12]} Qf8 {[%emt 0:00:39]} 36. Qxf8+ {
[%emt 0:00:12]} Kxf8 {[%emt 0:00:02]} 37. e6 {[%emt 0:00:45]} Ke7 {[%emt 0:00:
16]} 38. Rxf7+ {[%emt 0:00:33]} Kxe6 {[%emt 0:00:05]} 39. Rxa7 {[%emt 0:00:11]}
Kd5 {[%emt 0:01:59]} 40. Rh7 {[%emt 0:00:50]} Rd6 {[%emt 0:00:27]} 41. Rb7 {
[%emt 0:27:37]} Ra8 {[%emt 0:27:38]} 42. Rxb6 {[%emt 0:02:08]} Rxa2 {[%emt 0:
00:05]} 43. Rb4 {[%emt 0:03:11]} Re6 {[%emt 0:07:57]} 44. Rc5+ {[%emt 0:00:29]}
Kd6 {[%emt 0:00:04]} 45. Rc2 {[%emt 0:00:51]} Ra5 {[%emt 0:05:26]} 46. Rbc4 {
[%emt 0:00:51]} Kd5 {[%emt 0:00:13]} 47. Kg2 {[%emt 0:00:42]} Rb5 {[%emt 0:01:
03]} 48. b4 {[%emt 0:02:38]} Rb8 {[%emt 0:07:44]} 49. Rc5+ {[%emt 0:12:04]}
Kxd4 {[%emt 0:00:06]} 50. R2c4+ {[%emt 0:01:37]} Kd3 {[%emt 0:00:30]} 51. Rc3+
{[%emt 0:00:09]} Kd4 {[%emt 0:00:38]} 52. Rxc6 {[%emt 0:01:39]} Rxc6 {[%emt 0:
00:09]} 53. Rxc6 {[%emt 0:00:04]} Rxb4 {[%emt 0:00:03]} 54. Rxh6 {[%emt 0:00:
56]} Rb2+ {[%emt 0:00:05]} 55. Kf3 {[%emt 0:00:04]} Rb3+ {[%emt 0:00:04]} 56.
Kf2 {[%emt 0:00:22]} Rb2+ {[%emt 0:00:17]} 57. Kf3 {[%emt 0:00:24]} Rb3+ {
[%emt 0:00:03]} 58. Kf2 {[%emt 0:00:07]} Rb2+ {[%emt 0:00:03]} 1/2-1/2